[Event "Titled Tuesday Blitz May 9 Early 2023"]
[White "Lehtosaari, Mauri"]
[Black "Mitusov, Semen"]
[WhiteFideId "501999"]
[BlackFideId "14151049"]
[WhiteElo "2518"]
[BlackElo "2389"]
[Result "0-1"]
[Round "07"]
[TimeControl "180+2"]
[Date "2023.05.09"]
[WhiteClock "0:00:00"]
[BlackClock "0:00:51"]

1. d4 {[%clk 0:03:00]}  d5 {[%clk 0:02:59]} 2. Nf3 {[%clk 0:03:00]}  Nf6 {[%clk 0:02:57]} 3. Bg5 {[%clk 0:02:58]}  e6 {[%clk 0:02:52]} 4. e3 {[%clk 0:02:58]}  Be7 {[%clk 0:02:51]} 5. Nbd2 {[%clk 0:02:58]}  b6 {[%clk 0:02:50]} 6. c3 {[%clk 0:02:54]}  Bb7 {[%clk 0:02:47]} 7. Bd3 {[%clk 0:02:53]}  c5 {[%clk 0:02:45]} 8. Ne5 {[%clk 0:02:44]}  O-O {[%clk 0:02:42]} 9. Qf3 {[%clk 0:02:31]}  Nbd7 {[%clk 0:02:39]} 10. Qh3 {[%clk 0:02:30]}  Nxe5 {[%clk 0:02:33]} 11. dxe5 {[%clk 0:02:24]}  Ne4 {[%clk 0:02:33]} 12. Bxe7 {[%clk 0:02:12]}  Qxe7 {[%clk 0:02:34]} 13. f3 {[%clk 0:01:40]}  Ng5 {[%clk 0:02:30]} 14. Qg3 {[%clk 0:01:39]}  f5 {[%clk 0:02:22]} 15. h4 {[%clk 0:01:18]}  Nf7 {[%clk 0:02:22]} 16. O-O-O {[%clk 0:01:09]}  Rfd8 {[%clk 0:02:08]} 17. Qf2 {[%clk 0:01:03]}  Rac8 {[%clk 0:02:05]} 18. Kb1 {[%clk 0:00:57]}  Nxe5 {[%clk 0:02:05]} 19. Bc2 {[%clk 0:00:55]}  Ba6 {[%clk 0:02:00]} 20. Nb3 {[%clk 0:00:47]}  Qf6 {[%clk 0:01:46]} 21. Qg3 {[%clk 0:00:42]}  Nc6 {[%clk 0:01:42]} 22. h5 {[%clk 0:00:42]}  e5 {[%clk 0:01:39]} 23. h6 {[%clk 0:00:42]}  g6 {[%clk 0:01:40]} 24. Qf2 {[%clk 0:00:34]}  Rd6 {[%clk 0:01:37]} 25. f4 {[%clk 0:00:31]}  e4 {[%clk 0:01:33]} 26. Rhg1 {[%clk 0:00:31]}  d4 {[%clk 0:01:27]} 27. exd4 {[%clk 0:00:26]}  cxd4 {[%clk 0:01:27]} 28. cxd4 {[%clk 0:00:24]}  Nb4 {[%clk 0:01:25]} 29. Rd2 {[%clk 0:00:16]}  Nxc2 {[%clk 0:01:24]} 30. Rxc2 {[%clk 0:00:17]}  Bd3 {[%clk 0:01:25]} 31. Rc1 {[%clk 0:00:15]}  Rdc6 {[%clk 0:01:24]} 32. Na1 {[%clk 0:00:14]}  Qe7 {[%clk 0:01:08]} 33. d5 {[%clk 0:00:12]}  Rc5 {[%clk 0:01:07]} 34. Qd2 {[%clk 0:00:11]}  Qc7 {[%clk 0:01:03]} 35. g4 {[%clk 0:00:05]}  fxg4 {[%clk 0:01:01]} 36. f5 {[%clk 0:00:05]}  Qd6 {[%clk 0:01:00]} 37. fxg6 {[%clk 0:00:04]}  Qxg6 {[%clk 0:01:01]} 38. Nb3 {[%clk 0:00:04]}  Rxc2 {[%clk 0:00:52]} 39. Rxc2 {[%clk 0:00:04]}  e3 {[%clk 0:00:52]} 40. Qh2 {[%clk 0:00:00]}  Bxc2+ {[%clk 0:00:51]} 0-1


[Site "https://www.chess.com"]

[Event "Titled Tuesday Blitz May 9 Early 2023"]
[White "Sahib Singh"]
[Black "Shvedova, Alexandra"]
[WhiteFideId "25618342"]
[BlackFideId "54154782"]
[WhiteElo "1934"]
[BlackElo "1973"]
[Result "1-0"]
[Round "07"]
[TimeControl "180+2"]
[Date "2023.05.09"]
[WhiteClock "0:00:19"]
[BlackClock "0:00:01"]

1. e4 {[%clk 0:02:59]}  e5 {[%clk 0:03:00]} 2. Nf3 {[%clk 0:02:59]}  Nc6 {[%clk 0:03:01]} 3. Bb5 {[%clk 0:02:59]}  Nf6 {[%clk 0:03:00]} 4. O-O {[%clk 0:02:59]}  Nxe4 {[%clk 0:03:00]} 5. d4 {[%clk 0:02:59]}  Nd6 {[%clk 0:03:00]} 6. Bxc6 {[%clk 0:02:59]}  dxc6 {[%clk 0:03:00]} 7. dxe5 {[%clk 0:03:00]}  Nf5 {[%clk 0:03:00]} 8. Qxd8+ {[%clk 0:02:59]}  Kxd8 {[%clk 0:03:01]} 9. Nc3 {[%clk 0:02:59]}  Ke8 {[%clk 0:03:01]} 10. Ne2 {[%clk 0:02:57]}  Be6 {[%clk 0:03:00]} 11. Ned4 {[%clk 0:02:58]}  Nxd4 {[%clk 0:02:59]} 12. Nxd4 {[%clk 0:02:58]}  Bd5 {[%clk 0:02:57]} 13. Be3 {[%clk 0:02:58]}  Rd8 {[%clk 0:02:54]} 14. b3 {[%clk 0:02:56]}  a6 {[%clk 0:02:48]} 15. c4 {[%clk 0:02:55]}  c5 {[%clk 0:02:44]} 16. Ne2 {[%clk 0:02:46]}  Bc6 {[%clk 0:02:42]} 17. Rad1 {[%clk 0:02:43]}  Be7 {[%clk 0:02:42]} 18. Nf4 {[%clk 0:02:39]}  b6 {[%clk 0:02:25]} 19. Nd5 {[%clk 0:02:39]}  Rd7 {[%clk 0:02:17]} 20. f4 {[%clk 0:02:35]}  g6 {[%clk 0:01:52]} 21. Rd2 {[%clk 0:02:32]}  Kd8 {[%clk 0:01:46]} 22. Rfd1 {[%clk 0:02:23]}  Kc8 {[%clk 0:01:46]} 23. a4 {[%clk 0:02:21]}  Bd8 {[%clk 0:01:43]} 24. Kf2 {[%clk 0:02:15]}  Kb7 {[%clk 0:01:43]} 25. h3 {[%clk 0:02:14]}  h5 {[%clk 0:01:42]} 26. g3 {[%clk 0:02:08]}  Re8 {[%clk 0:01:36]} 27. Rd3 {[%clk 0:02:06]}  Rh8 {[%clk 0:01:27]} 28. Bc1 {[%clk 0:02:00]}  Re8 {[%clk 0:01:20]} 29. Bb2 {[%clk 0:02:00]}  Re6 {[%clk 0:01:15]} 30. Ne3 {[%clk 0:01:50]}  Rxd3 {[%clk 0:01:11]} 31. Rxd3 {[%clk 0:01:51]}  Be7 {[%clk 0:01:08]} 32. Nd5 {[%clk 0:01:50]}  Kc8 {[%clk 0:01:02]} 33. g4 {[%clk 0:01:48]}  hxg4 {[%clk 0:01:02]} 34. hxg4 {[%clk 0:01:49]}  Bd8 {[%clk 0:01:01]} 35. Rh3 {[%clk 0:01:46]}  Re8 {[%clk 0:00:59]} 36. Rh7 {[%clk 0:01:44]}  Rf8 {[%clk 0:00:59]} 37. f5 {[%clk 0:01:41]}  gxf5 {[%clk 0:01:00]} 38. gxf5 {[%clk 0:01:42]}  b5 {[%clk 0:00:58]} 39. axb5 {[%clk 0:01:41]}  axb5 {[%clk 0:00:59]} 40. Ba3 {[%clk 0:01:25]}  b4 {[%clk 0:00:58]} 41. Bc1 {[%clk 0:01:25]}  Bd7 {[%clk 0:00:58]} 42. Rh5 {[%clk 0:01:22]}  Rg8 {[%clk 0:00:56]} 43. Be3 {[%clk 0:01:22]}  c6 {[%clk 0:00:53]} 44. Nf4 {[%clk 0:01:03]}  Bg5 {[%clk 0:00:53]} 45. e6 {[%clk 0:00:54]}  fxe6 {[%clk 0:00:51]} 46. fxe6 {[%clk 0:00:55]}  Be8 {[%clk 0:00:50]} 47. Rh7 {[%clk 0:00:45]}  Rf8 {[%clk 0:00:37]} 48. Kg3 {[%clk 0:00:40]}  Bf6 {[%clk 0:00:33]} 49. Bxc5 {[%clk 0:00:38]}  Rg8+ {[%clk 0:00:31]} 50. Kf3 {[%clk 0:00:38]}  Be5 {[%clk 0:00:31]} 51. Bxb4 {[%clk 0:00:38]}  Kd8 {[%clk 0:00:19]} 52. e7+ {[%clk 0:00:35]}  Kd7 {[%clk 0:00:19]} 53. Nd3 {[%clk 0:00:35]}  Bd4 {[%clk 0:00:18]} 54. Rh4 {[%clk 0:00:30]}  c5 {[%clk 0:00:11]} 55. Nxc5+ {[%clk 0:00:26]}  Bxc5 {[%clk 0:00:12]} 56. Bxc5 {[%clk 0:00:26]}  Rg5 {[%clk 0:00:12]} 57. b4 {[%clk 0:00:26]}  Rf5+ {[%clk 0:00:11]} 58. Ke4 {[%clk 0:00:24]}  Rf1 {[%clk 0:00:11]} 59. Rh3 {[%clk 0:00:21]}  Rc1 {[%clk 0:00:11]} 60. Rd3+ {[%clk 0:00:21]}  Ke6 {[%clk 0:00:11]} 61. Rd8 {[%clk 0:00:20]}  Kf7 {[%clk 0:00:11]} 62. Kd5 {[%clk 0:00:19]}  Rd1+ {[%clk 0:00:10]} 63. Ke5 {[%clk 0:00:20]}  Re1+ {[%clk 0:00:06]} 64. Kd6 {[%clk 0:00:19]}  Rc1 {[%clk 0:00:06]} 65. b5 {[%clk 0:00:19]}  Rxc4 {[%clk 0:00:06]} 66. b6 {[%clk 0:00:19]}  Rc1 {[%clk 0:00:02]} 67. b7 {[%clk 0:00:20]}  Rd1+ {[%clk 0:00:03]} 68. Kc7 {[%clk 0:00:20]}  Rc1 {[%clk 0:00:03]} 69. b8=Q {[%clk 0:00:19]}  Rxc5+ {[%clk 0:00:04]} 70. Kd6 {[%clk 0:00:19]}  Rc6+ {[%clk 0:00:01]} 71. Kd5 {[%clk 0:00:19]} 1-0


[Site "https://www.chess.com"]

[Event "Titled Tuesday Blitz May 9 Early 2023"]
[White "Pourkashiyan, Atousa"]
[Black "Tasev, Dejan"]
[WhiteFideId "12502014"]
[BlackFideId "936618"]
[WhiteElo "2228"]
[BlackElo "2244"]
[Result "0-1"]
[Round "07"]
[TimeControl "180+2"]
[Date "2023.05.09"]
[WhiteClock "0:00:00"]
[BlackClock "0:01:08"]

1. e4 {[%clk 0:03:00]}  e5 {[%clk 0:02:59]} 2. Nf3 {[%clk 0:03:01]}  Nc6 {[%clk 0:02:59]} 3. Bb5 {[%clk 0:03:00]}  a6 {[%clk 0:02:59]} 4. Ba4 {[%clk 0:03:00]}  Nf6 {[%clk 0:02:58]} 5. O-O {[%clk 0:03:01]}  b5 {[%clk 0:02:57]} 6. Bb3 {[%clk 0:03:01]}  Be7 {[%clk 0:02:58]} 7. h3 {[%clk 0:02:57]}  O-O {[%clk 0:02:58]} 8. Re1 {[%clk 0:02:51]}  Bb7 {[%clk 0:02:55]} 9. d3 {[%clk 0:02:51]}  d6 {[%clk 0:02:54]} 10. Nc3 {[%clk 0:02:48]}  Na5 {[%clk 0:02:49]} 11. Nd5 {[%clk 0:02:33]}  Nxb3 {[%clk 0:02:47]} 12. Nxe7+ {[%clk 0:02:33]}  Qxe7 {[%clk 0:02:47]} 13. axb3 {[%clk 0:02:34]}  c5 {[%clk 0:02:45]} 14. Bg5 {[%clk 0:02:28]}  h6 {[%clk 0:02:43]} 15. Bh4 {[%clk 0:02:27]}  Qe6 {[%clk 0:02:43]} 16. Qd2 {[%clk 0:02:25]}  Nh7 {[%clk 0:02:42]} 17. Bg3 {[%clk 0:02:03]}  f5 {[%clk 0:02:39]} 18. exf5 {[%clk 0:02:01]}  Qxf5 {[%clk 0:02:35]} 19. Nh4 {[%clk 0:01:55]}  Qf7 {[%clk 0:02:30]} 20. Qe2 {[%clk 0:01:49]}  Ng5 {[%clk 0:02:25]} 21. Rf1 {[%clk 0:01:33]}  Rae8 {[%clk 0:02:21]} 22. Qd2 {[%clk 0:01:25]}  Ne6 {[%clk 0:02:09]} 23. b4 {[%clk 0:01:02]}  g5 {[%clk 0:01:58]} 24. Nf3 {[%clk 0:01:01]}  Bxf3 {[%clk 0:01:52]} 25. gxf3 {[%clk 0:01:02]}  Nd4 {[%clk 0:01:52]} 26. Qd1 {[%clk 0:00:42]}  Qf5 {[%clk 0:01:41]} 27. Kg2 {[%clk 0:00:35]}  h5 {[%clk 0:01:36]} 28. h4 {[%clk 0:00:26]}  gxh4 {[%clk 0:01:30]} 29. Bxh4 {[%clk 0:00:27]}  Nxf3 {[%clk 0:01:30]} 30. Bg3 {[%clk 0:00:17]}  h4 {[%clk 0:01:28]} 31. Rh1 {[%clk 0:00:07]}  hxg3 {[%clk 0:01:23]} 32. Rh3 {[%clk 0:00:05]}  Nh4+ {[%clk 0:01:08]} 33. Rxh4 {[%clk 0:00:00]}  Qxf2+ {[%clk 0:01:08]} 0-1


[Site "https://www.chess.com"]

[Event "Titled Tuesday Blitz May 9 Early 2023"]
[White "Weishaeutel, Moritz"]
[Black "Devaev, Alexander"]
[WhiteFideId "12967300"]
[BlackFideId "4169395"]
[WhiteElo "2301"]
[BlackElo "2172"]
[Result "1-0"]
[Round "07"]
[TimeControl "180+2"]
[Date "2023.05.09"]
[WhiteClock "0:00:04"]
[BlackClock "0:00:00"]

1. e4 {[%clk 0:03:00]}  c6 {[%clk 0:02:55]} 2. d4 {[%clk 0:03:00]}  d5 {[%clk 0:02:55]} 3. exd5 {[%clk 0:03:01]}  cxd5 {[%clk 0:02:56]} 4. Bd3 {[%clk 0:03:02]}  Nf6 {[%clk 0:02:54]} 5. c3 {[%clk 0:03:01]}  Qc7 {[%clk 0:02:55]} 6. h3 {[%clk 0:03:01]}  g6 {[%clk 0:02:55]} 7. Nf3 {[%clk 0:03:00]}  Bf5 {[%clk 0:02:55]} 8. O-O {[%clk 0:02:59]}  Nc6 {[%clk 0:02:51]} 9. Re1 {[%clk 0:02:50]}  e6 {[%clk 0:02:36]} 10. Bg5 {[%clk 0:01:38]}  Be7 {[%clk 0:02:34]} 11. Bb5 {[%clk 0:01:15]}  h6 {[%clk 0:02:27]} 12. Bh4 {[%clk 0:01:14]}  a6 {[%clk 0:01:51]} 13. Bxc6+ {[%clk 0:00:59]}  Qxc6 {[%clk 0:01:51]} 14. Nbd2 {[%clk 0:01:00]}  g5 {[%clk 0:01:38]} 15. Bg3 {[%clk 0:00:59]}  Nd7 {[%clk 0:01:22]} 16. Ne5 {[%clk 0:00:55]}  Nxe5 {[%clk 0:01:22]} 17. Bxe5 {[%clk 0:00:56]}  O-O {[%clk 0:01:19]} 18. Qh5 {[%clk 0:00:53]}  f6 {[%clk 0:01:17]} 19. Bh2 {[%clk 0:00:48]}  Kg7 {[%clk 0:01:17]} 20. Qe2 {[%clk 0:00:44]}  Kf7 {[%clk 0:00:47]} 21. Qh5+ {[%clk 0:00:38]}  Bg6 {[%clk 0:00:43]} 22. Qe2 {[%clk 0:00:39]}  Rae8 {[%clk 0:00:43]} 23. c4 {[%clk 0:00:32]}  Bd8 {[%clk 0:00:38]} 24. Rac1 {[%clk 0:00:28]}  Qd7 {[%clk 0:00:28]} 25. Nb3 {[%clk 0:00:21]}  dxc4 {[%clk 0:00:16]} 26. Nc5 {[%clk 0:00:17]}  Qd5 {[%clk 0:00:14]} 27. Rxc4 {[%clk 0:00:12]}  Bb6 {[%clk 0:00:13]} 28. Nb3 {[%clk 0:00:06]}  Re7 {[%clk 0:00:11]} 29. Rec1 {[%clk 0:00:05]}  Rd8 {[%clk 0:00:09]} 30. Rb4 {[%clk 0:00:05]}  Ba7 {[%clk 0:00:05]} 31. Bg3 {[%clk 0:00:04]}  Red7 {[%clk 0:00:05]} 32. Nc5 {[%clk 0:00:04]}  Bxc5 {[%clk 0:00:05]} 33. Rxc5 {[%clk 0:00:05]}  Qxa2 {[%clk 0:00:04]} 34. Rb6 {[%clk 0:00:05]}  h5 {[%clk 0:00:01]} 35. Bc7 {[%clk 0:00:05]}  Re8 {[%clk 0:00:00]} 36. Rxb7 {[%clk 0:00:04]} 1-0


[Site "https://www.chess.com"]

[Event "Titled Tuesday Blitz May 9 Early 2023"]
[White "Kohler, Aran"]
[Black "Sieciechowicz, Marcin"]
[WhiteFideId "1002856"]
[BlackFideId "1130170"]
[WhiteElo "2373"]
[BlackElo "2302"]
[Result "1-0"]
[Round "07"]
[TimeControl "180+2"]
[Date "2023.05.09"]
[WhiteClock "0:01:58"]
[BlackClock "0:02:06"]

1. d4 {[%clk 0:03:00]}  d5 {[%clk 0:02:59]} 2. Nf3 {[%clk 0:03:00]}  Nf6 {[%clk 0:02:58]} 3. Bg5 {[%clk 0:03:00]}  Ne4 {[%clk 0:02:57]} 4. Bf4 {[%clk 0:03:00]}  c5 {[%clk 0:02:57]} 5. e3 {[%clk 0:02:59]}  e6 {[%clk 0:02:56]} 6. c3 {[%clk 0:02:58]}  Nc6 {[%clk 0:02:57]} 7. Nbd2 {[%clk 0:02:57]}  f5 {[%clk 0:02:55]} 8. Nxe4 {[%clk 0:02:55]}  fxe4 {[%clk 0:02:56]} 9. Ne5 {[%clk 0:02:55]}  g6 {[%clk 0:02:45]} 10. Bb5 {[%clk 0:02:53]}  Bd7 {[%clk 0:02:45]} 11. Nxd7 {[%clk 0:02:53]}  Qxd7 {[%clk 0:02:45]} 12. Be5 {[%clk 0:02:51]}  Bg7 {[%clk 0:02:45]} 13. Bxc6 {[%clk 0:02:48]}  bxc6 {[%clk 0:02:44]} 14. Bxg7 {[%clk 0:02:48]}  Qxg7 {[%clk 0:02:45]} 15. dxc5 {[%clk 0:02:48]}  O-O {[%clk 0:02:44]} 16. O-O {[%clk 0:02:45]}  Rab8 {[%clk 0:02:41]} 17. Qc2 {[%clk 0:02:40]}  a5 {[%clk 0:02:39]} 18. a3 {[%clk 0:02:35]}  a4 {[%clk 0:02:37]} 19. Rab1 {[%clk 0:02:33]}  Rb3 {[%clk 0:02:36]} 20. c4 {[%clk 0:02:28]}  Rfb8 {[%clk 0:02:36]} 21. cxd5 {[%clk 0:02:26]}  exd5 {[%clk 0:02:37]} 22. h3 {[%clk 0:02:05]}  h5 {[%clk 0:02:37]} 23. Rfd1 {[%clk 0:02:04]}  Rxb2 {[%clk 0:02:34]} 24. Rxb2 {[%clk 0:02:03]}  Rxb2 {[%clk 0:02:35]} 25. Qxa4 {[%clk 0:02:03]}  Qf6 {[%clk 0:02:32]} 26. Rf1 {[%clk 0:02:01]}  Rb5 {[%clk 0:02:28]} 27. Qa8+ {[%clk 0:01:57]}  Kh7 {[%clk 0:02:27]} 28. a4 {[%clk 0:01:58]}  Rxc5 {[%clk 0:02:06]} 29. Qa7+ {[%clk 0:01:58]} 1-0


[Site "https://www.chess.com"]

[Event "Titled Tuesday Blitz May 9 Early 2023"]
[White "Van Dael, Siem"]
[Black "Ismagilov, Damir"]
[WhiteFideId "1049771"]
[BlackFideId "34199982"]
[WhiteElo "2336"]
[BlackElo "2143"]
[Result "0-1"]
[Round "07"]
[TimeControl "180+2"]
[Date "2023.05.09"]
[WhiteClock "0:00:01"]
[BlackClock "0:00:21"]

1. e4 {[%clk 0:03:00]}  e5 {[%clk 0:02:59]} 2. Nf3 {[%clk 0:03:01]}  Nc6 {[%clk 0:02:59]} 3. Bc4 {[%clk 0:03:01]}  Bc5 {[%clk 0:02:59]} 4. c3 {[%clk 0:03:02]}  Nf6 {[%clk 0:02:59]} 5. d4 {[%clk 0:03:02]}  exd4 {[%clk 0:02:59]} 6. b4 {[%clk 0:03:03]}  Bb6 {[%clk 0:02:57]} 7. e5 {[%clk 0:03:03]}  Ne4 {[%clk 0:02:55]} 8. Bd5 {[%clk 0:02:58]}  Nxc3 {[%clk 0:02:54]} 9. Nxc3 {[%clk 0:02:59]}  dxc3 {[%clk 0:02:54]} 10. Bg5 {[%clk 0:02:59]}  Ne7 {[%clk 0:02:52]} 11. O-O {[%clk 0:02:59]}  h6 {[%clk 0:02:45]} 12. Bh4 {[%clk 0:03:00]}  c2 {[%clk 0:02:44]} 13. Qd3 {[%clk 0:02:50]}  g5 {[%clk 0:02:26]} 14. Nxg5 {[%clk 0:02:45]}  hxg5 {[%clk 0:01:46]} 15. Bxg5 {[%clk 0:02:46]}  d6 {[%clk 0:01:35]} 16. Rae1 {[%clk 0:02:20]}  Be6 {[%clk 0:01:23]} 17. Bxb7 {[%clk 0:01:17]}  Rb8 {[%clk 0:01:21]} 18. Ba6 {[%clk 0:00:57]}  dxe5 {[%clk 0:01:05]} 19. Bb5+ {[%clk 0:00:37]}  Kf8 {[%clk 0:00:51]} 20. Qg3 {[%clk 0:00:37]}  Nf5 {[%clk 0:00:42]} 21. Qxe5 {[%clk 0:00:32]}  Qd4 {[%clk 0:00:36]} 22. Qf6 {[%clk 0:00:05]}  Qxf6 {[%clk 0:00:33]} 23. Bxf6 {[%clk 0:00:06]}  Rh6 {[%clk 0:00:32]} 24. Bb2 {[%clk 0:00:05]}  Rd8 {[%clk 0:00:30]} 25. g4 {[%clk 0:00:04]}  Nd4 {[%clk 0:00:23]} 26. Re3 {[%clk 0:00:01]}  Nxb5 {[%clk 0:00:21]} 0-1


[Site "https://www.chess.com"]

[Event "Titled Tuesday Blitz May 9 Early 2023"]
[White "Gatterer, Florian"]
[Black "Skliarov, Viktor"]
[WhiteFideId "811688"]
[BlackFideId "14106736"]
[WhiteElo "2221"]
[BlackElo "2317"]
[Result "0-1"]
[Round "07"]
[TimeControl "180+2"]
[Date "2023.05.09"]
[WhiteClock "0:01:03"]
[BlackClock "0:00:43"]

1. c4 {[%clk 0:03:00]}  e5 {[%clk 0:02:59]} 2. g3 {[%clk 0:02:55]}  Nf6 {[%clk 0:02:59]} 3. Bg2 {[%clk 0:02:56]}  c6 {[%clk 0:03:00]} 4. d4 {[%clk 0:02:55]}  exd4 {[%clk 0:02:58]} 5. Qxd4 {[%clk 0:02:56]}  Na6 {[%clk 0:02:59]} 6. Nc3 {[%clk 0:02:54]}  Bc5 {[%clk 0:02:59]} 7. Qd1 {[%clk 0:02:50]}  Ng4 {[%clk 0:02:53]} 8. e3 {[%clk 0:02:48]}  Ne5 {[%clk 0:02:43]} 9. Qe2 {[%clk 0:02:23]}  Nb4 {[%clk 0:02:38]} 10. Ne4 {[%clk 0:02:20]}  Be7 {[%clk 0:02:29]} 11. Nf3 {[%clk 0:02:17]}  Nbd3+ {[%clk 0:02:24]} 12. Kf1 {[%clk 0:02:13]}  Nxc1 {[%clk 0:02:24]} 13. Rxc1 {[%clk 0:02:11]}  Nxf3 {[%clk 0:02:19]} 14. Bxf3 {[%clk 0:02:09]}  O-O {[%clk 0:02:04]} 15. Kg2 {[%clk 0:02:09]}  d6 {[%clk 0:02:03]} 16. Rhd1 {[%clk 0:02:08]}  Qc7 {[%clk 0:02:02]} 17. h4 {[%clk 0:01:55]}  h6 {[%clk 0:01:56]} 18. Bg4 {[%clk 0:01:53]}  f5 {[%clk 0:01:55]} 19. Bf3 {[%clk 0:01:39]}  fxe4 {[%clk 0:01:53]} 20. Bxe4 {[%clk 0:01:40]}  Bf5 {[%clk 0:01:53]} 21. Bxf5 {[%clk 0:01:38]}  Rxf5 {[%clk 0:01:51]} 22. Qd3 {[%clk 0:01:39]}  Raf8 {[%clk 0:01:47]} 23. Rc2 {[%clk 0:01:40]}  Qc8 {[%clk 0:01:41]} 24. Qe4 {[%clk 0:01:39]}  Re5 {[%clk 0:01:32]} 25. Qd3 {[%clk 0:01:33]}  Qg4 {[%clk 0:01:31]} 26. Qe2 {[%clk 0:01:32]}  Qe4+ {[%clk 0:01:22]} 27. Kh3 {[%clk 0:01:24]}  Bxh4 {[%clk 0:00:45]} 28. Rd4 {[%clk 0:01:09]}  Qh1+ {[%clk 0:00:43]} 29. Kg4 {[%clk 0:01:03]}  Rg5# {[%clk 0:00:43]} 0-1


[Site "https://www.chess.com"]

[Event "Titled Tuesday Blitz May 9 Early 2023"]
[White "Janaszak, Dawid"]
[Black "Kirillov, Dmitry"]
[WhiteFideId "1119206"]
[BlackFideId "34180572"]
[WhiteElo "2220"]
[BlackElo "2161"]
[Result "1-0"]
[Round "07"]
[TimeControl "180+2"]
[Date "2023.05.09"]
[WhiteClock "0:00:28"]
[BlackClock "0:00:04"]

1. e4 {[%clk 0:02:56]}  c6 {[%clk 0:02:59]} 2. d4 {[%clk 0:02:53]}  d5 {[%clk 0:03:00]} 3. exd5 {[%clk 0:02:54]}  cxd5 {[%clk 0:03:01]} 4. Bd3 {[%clk 0:02:53]}  Nc6 {[%clk 0:03:01]} 5. c3 {[%clk 0:02:54]}  Nf6 {[%clk 0:03:02]} 6. Bf4 {[%clk 0:02:54]}  g6 {[%clk 0:03:03]} 7. Nf3 {[%clk 0:02:54]}  Bg7 {[%clk 0:03:03]} 8. O-O {[%clk 0:02:54]}  O-O {[%clk 0:03:04]} 9. Ne5 {[%clk 0:02:52]}  Bf5 {[%clk 0:03:03]} 10. Re1 {[%clk 0:02:51]}  Rc8 {[%clk 0:03:01]} 11. Na3 {[%clk 0:02:44]}  a6 {[%clk 0:02:54]} 12. Bxf5 {[%clk 0:02:38]}  gxf5 {[%clk 0:02:53]} 13. Nc2 {[%clk 0:02:33]}  e6 {[%clk 0:02:53]} 14. h3 {[%clk 0:02:23]}  Ne7 {[%clk 0:02:53]} 15. g4 {[%clk 0:02:19]}  fxg4 {[%clk 0:02:48]} 16. hxg4 {[%clk 0:02:20]}  Ng6 {[%clk 0:02:46]} 17. Bg3 {[%clk 0:02:12]}  Ne4 {[%clk 0:02:45]} 18. Nxg6 {[%clk 0:02:03]}  fxg6 {[%clk 0:02:25]} 19. Qd3 {[%clk 0:01:59]}  Qf6 {[%clk 0:02:21]} 20. Rxe4 {[%clk 0:01:57]}  dxe4 {[%clk 0:02:21]} 21. Qxe4 {[%clk 0:01:58]}  Rce8 {[%clk 0:02:19]} 22. Re1 {[%clk 0:01:58]}  Qf3 {[%clk 0:02:17]} 23. Qxf3 {[%clk 0:01:50]}  Rxf3 {[%clk 0:02:18]} 24. Kg2 {[%clk 0:01:45]}  Rf7 {[%clk 0:02:18]} 25. Ne3 {[%clk 0:01:41]}  Rfe7 {[%clk 0:02:14]} 26. Nc4 {[%clk 0:01:40]}  g5 {[%clk 0:02:09]} 27. a4 {[%clk 0:01:32]}  h6 {[%clk 0:02:02]} 28. a5 {[%clk 0:01:28]}  Rc8 {[%clk 0:01:56]} 29. Nb6 {[%clk 0:01:21]}  Rd8 {[%clk 0:01:43]} 30. Kf1 {[%clk 0:00:56]}  Kf7 {[%clk 0:01:35]} 31. Re4 {[%clk 0:00:55]}  Kg6 {[%clk 0:01:27]} 32. d5 {[%clk 0:00:45]}  e5 {[%clk 0:01:13]} 33. c4 {[%clk 0:00:45]}  h5 {[%clk 0:00:41]} 34. gxh5+ {[%clk 0:00:45]}  Kxh5 {[%clk 0:00:37]} 35. c5 {[%clk 0:00:44]}  Kg6 {[%clk 0:00:35]} 36. Ke2 {[%clk 0:00:44]}  Kf5 {[%clk 0:00:35]} 37. f3 {[%clk 0:00:44]}  Bf8 {[%clk 0:00:33]} 38. d6 {[%clk 0:00:44]}  Re6 {[%clk 0:00:32]} 39. b4 {[%clk 0:00:43]}  Bh6 {[%clk 0:00:16]} 40. Kd3 {[%clk 0:00:43]}  Rg8 {[%clk 0:00:11]} 41. Nc4 {[%clk 0:00:43]}  g4 {[%clk 0:00:10]} 42. fxg4+ {[%clk 0:00:36]}  Rxg4 {[%clk 0:00:10]} 43. Rxg4 {[%clk 0:00:37]}  Kxg4 {[%clk 0:00:10]} 44. Bxe5 {[%clk 0:00:30]}  Bg5 {[%clk 0:00:08]} 45. Ke4 {[%clk 0:00:29]}  Bd8 {[%clk 0:00:07]} 46. Kd5 {[%clk 0:00:29]}  Kf5 {[%clk 0:00:04]} 47. Ne3+ {[%clk 0:00:28]} 1-0


[Site "https://www.chess.com"]

[Event "Titled Tuesday Blitz May 9 Early 2023"]
[White "Mirzoev, Azer"]
[Black "Korelskiy, Egor"]
[WhiteFideId "13400304"]
[BlackFideId "34329064"]
[WhiteElo "2525"]
[BlackElo "2156"]
[Result "0-1"]
[Round "07"]
[TimeControl "180+2"]
[Date "2023.05.09"]
[WhiteClock "0:00:00"]
[BlackClock "0:01:28"]

1. c4 {[%clk 0:02:58]}  e6 {[%clk 0:02:54]} 2. Nc3 {[%clk 0:02:57]}  d5 {[%clk 0:02:53]} 3. e3 {[%clk 0:02:58]}  c6 {[%clk 0:02:52]} 4. d4 {[%clk 0:02:58]}  Nf6 {[%clk 0:02:52]} 5. f4 {[%clk 0:02:57]}  Bb4 {[%clk 0:02:50]} 6. Nf3 {[%clk 0:02:57]}  O-O {[%clk 0:02:48]} 7. Bd3 {[%clk 0:02:56]}  Ne4 {[%clk 0:02:44]} 8. Qc2 {[%clk 0:02:55]}  f5 {[%clk 0:02:43]} 9. O-O {[%clk 0:02:52]}  Nd7 {[%clk 0:02:42]} 10. a3 {[%clk 0:02:51]}  Bd6 {[%clk 0:02:40]} 11. c5 {[%clk 0:02:52]}  Bc7 {[%clk 0:02:39]} 12. b4 {[%clk 0:02:52]}  a6 {[%clk 0:02:39]} 13. Rb1 {[%clk 0:02:50]}  b6 {[%clk 0:02:32]} 14. Bd2 {[%clk 0:02:39]}  Bb7 {[%clk 0:02:29]} 15. Be1 {[%clk 0:02:36]}  Qe8 {[%clk 0:02:27]} 16. cxb6 {[%clk 0:02:26]}  Nxb6 {[%clk 0:02:24]} 17. Na4 {[%clk 0:02:25]}  Nxa4 {[%clk 0:02:19]} 18. Qxa4 {[%clk 0:02:24]}  Qd8 {[%clk 0:02:00]} 19. Ne5 {[%clk 0:02:18]}  Bb8 {[%clk 0:01:57]} 20. Rc1 {[%clk 0:02:13]}  Bxe5 {[%clk 0:01:56]} 21. fxe5 {[%clk 0:02:12]}  Qg5 {[%clk 0:01:55]} 22. Rf3 {[%clk 0:02:04]}  f4 {[%clk 0:01:55]} 23. Bxe4 {[%clk 0:01:48]}  dxe4 {[%clk 0:01:51]} 24. exf4 {[%clk 0:01:26]}  Rxf4 {[%clk 0:01:43]} 25. Rxf4 {[%clk 0:01:25]}  Qxf4 {[%clk 0:01:41]} 26. Qd1 {[%clk 0:01:16]}  Rf8 {[%clk 0:01:38]} 27. Bg3 {[%clk 0:01:15]}  Qe3+ {[%clk 0:01:34]} 28. Kh1 {[%clk 0:01:15]}  Qxa3 {[%clk 0:01:32]} 29. Qe1 {[%clk 0:01:00]}  e3 {[%clk 0:01:30]} 30. Ra1 {[%clk 0:00:00]}  e2 {[%clk 0:01:28]} 0-1


[Site "https://www.chess.com"]